bitfinex-derivatives/quotes_BTCF0:USTF0_20240925
["timestamp","ask_amount","ask_price","bid_price","bid_amount"]
[1727226188299,0.12437616,64182.0,64181.0,0.0799]
[1727226189309,0.077899,64182.0,64181.0,0.0799]
[1727226191210,0.12437616,64182.0,64181.0,0.0799]
[1727226191411,0.077899,64182.0,64181.0,0.0799]
[1727226194214,0.12437616,64182.0,64181.0,0.0799]
[1727226195099,0.077899,64182.0,64181.0,0.002]
[1727226196008,0.14004907,64182.0,64181.0,0.002]
[1727226196306,0.077899,64182.0,64181.0,0.002]
[1727226197303,0.799499,64182.0,64181.0,0.002]
[1727226198107,0.87718659,64182.0,64181.0,0.002]
[1727226198828,0.7216,64182.0,64181.0,0.0799]
[1727226199417,0.799499,64182.0,64181.0,0.0799]
[1727226199606,0.87718659,64182.0,64181.0,0.0799]
[1727226200706,0.87718659,64182.0,64181.0,0.002]
[1727226202314,0.51638659,64182.0,64181.0,0.002]
[1727226202815,0.51638659,64182.0,64181.0,0.0799]
[1727226203921,0.46395299,64182.0,64181.0,0.0799]
[1727226205637,0.10315299,64182.0,64181.0,0.0799]
[1727226205813,0.46395299,64182.0,64181.0,0.0799]
[1727226208726,0.10315299,64182.0,64181.0,0.0799]
[1727226209029,0.46395299,64182.0,64181.0,0.0799]
[1727226210424,0.47927909,64182.0,64181.0,0.0799]
[1727226210619,0.38605399,64182.0,64181.0,0.0799]
[1727226210821,0.3608,64182.0,64181.0,0.1578]
[1727226211029,0.42311049,64182.0,64181.0,0.0799]
[1727226211236,0.3608,64182.0,64181.0,0.0799]
[1727226211638,0.04671348,64183.0,64182.0,0.077899]
[1727226211835,0.04671348,64183.0,64182.0,0.247299]
[1727226212573,0.00521225,64191.0,64182.0,0.1694]
[1727226212574,0.04669681,64184.0,64182.0,0.1694]
[1727226212842,0.04669681,64184.0,64183.0,0.14]
[1727226213541,0.04669681,64185.0,64184.0,0.077897]
[1727226213734,0.04669681,64185.0,64184.0,0.14009476]
[1727226214242,0.06231049,64188.0,64187.0,0.077893]
[1727226214444,0.06231049,64189.0,64188.0,0.077892]
[1727226215238,0.3608,64192.0,64188.0,0.077892]
[1727226215239,0.42311049,64192.0,64191.0,0.077888]
[1727226215429,0.3608,64192.0,64191.0,0.077888]
[1727226215637,0.40744815,64192.0,64191.0,0.12451384]
[1727226215977,0.40744815,64192.0,64191.0,0.077888]
[1727226216533,0.3608,64192.0,64191.0,0.12447099]
[1727226217545,0.3688,64192.0,64191.0,0.078888]
[1727226217731,0.41544815,64192.0,64191.0,0.001]
[1727226217932,0.3688,64192.0,64191.0,0.001]
[1727226218634,0.448687,64192.0,64191.0,0.002]
[1727226219039,0.51099749,64192.0,64191.0,0.002]
[1727226220043,0.809487,64192.0,64191.0,0.002]
[1727226220246,0.949487,64192.0,64191.0,0.002]
[1727226220440,0.077888,64191.0,64180.0,0.077901]
[1727226220652,0.3608,64182.0,64181.0,0.0779]
[1727226220939,0.3608,64182.0,64179.0,0.077902]
[1727226220940,0.077901,64181.0,64179.0,0.077902]
[1727226221532,0.14006015,64181.0,64180.0,0.003]
[1727226222149,0.14006015,64181.0,64179.0,0.081902]
[1727226222645,0.14006015,64181.0,64180.0,0.003]
[1727226223147,0.14006015,64181.0,64179.0,0.081902]
[1727226223446,0.14006015,64181.0,64179.0,0.085902]
[1727226224032,0.14006015,64181.0,64180.0,0.002]
[1727226224237,0.14006015,64181.0,64180.0,0.082901]
[1727226224849,0.14006015,64181.0,64180.0,0.079901]
[1727226225043,0.14515188,64181.0,64180.0,0.079901]
[1727226226551,0.06215915,64181.0,64180.0,0.081901]
[1727226227748,0.06215915,64181.0,64180.0,0.39459666]
[1727226230655,0.06215915,64181.0,64180.0,0.39960381]
[1727226232953,0.0036,64190.0,64189.0,0.077891]
[1727226233153,0.3608,64192.0,64191.0,0.077888]
[1727226233154,0.36601763,64192.0,64191.0,0.077888]
[1727226234351,0.36601763,64192.0,64189.0,0.07789]
[1727226234553,0.36901763,64192.0,64191.0,0.001]
[1727226235763,0.44690463,64192.0,64189.0,0.002]
[1727226236058,0.37501763,64192.0,64191.0,0.001]
[1727226236246,0.37801763,64192.0,64191.0,0.002]
[1727226237257,0.45590463,64192.0,64191.0,0.079888]
[1727226237962,0.44690463,64192.0,64191.0,0.001]
[1727226238152,0.155778,64190.0,64189.0,0.001]
[1727226238460,0.077895,64185.0,64184.0,0.077896]
[1727226238663,0.438695,64185.0,64184.0,0.077896]
[1727226239658,0.440695,64185.0,64184.0,0.077896]
[1727226241058,0.442695,64185.0,64184.0,0.077896]
[1727226245165,0.50996994,64185.0,64184.0,0.077896]
[1727226245484,0.44783517,64185.0,64184.0,0.077896]
[1727226247570,0.52551945,64185.0,64184.0,0.077896]
[1727226248264,0.52551945,64185.0,64175.0,0.12806801]
[1727226248265,0.077903,64179.0,64176.0,0.077906]
[1727226248480,1.59291945,64185.0,64168.0,0.04736101]
[1727226248481,0.3608,64177.0,64168.0,0.04736101]
[1727226248761,0.077917,64168.0,64163.0,0.12576101]
[1727226248950,0.3608,64169.0,64163.0,0.12576101]
[1727226248951,0.0622461,64165.0,64163.0,0.0756]
[1727226249150,0.0622461,64165.0,64164.0,0.077921]
[1727226249361,0.0622461,64165.0,64159.0,0.14068134]
[1727226249362,0.14,64165.0,64160.0,0.077926]
[1727226249557,0.3608,64161.0,64160.0,0.077926]
[1727226249971,0.40743484,64161.0,64160.0,0.077926]
[1727226250460,0.3608,64161.0,64160.0,0.077926]
[1727226251166,0.3608,64161.0,64160.0,0.081926]
[1727226252682,0.3608,64161.0,64160.0,0.085926]
[1727226254173,0.3608,64161.0,64160.0,0.008]
[1727226257467,0.438725,64161.0,64160.0,0.008]
[1727226257865,0.48535984,64161.0,64160.0,0.008]
[1727226259066,0.98421,64161.0,64160.0,0.008]
[1727226259266,0.077934,64155.0,64154.0,0.077932]
[1727226259484,0.077934,64155.0,64152.0,0.156135]
[1727226259485,0.077934,64153.0,64152.0,0.156135]
[1727226259669,0.077938,64151.0,64148.0,0.07794]
[1727226259978,0.14,64153.0,64146.0,0.077942]
[1727226259979,0.438739,64149.0,64146.0,0.077942]
[1727226260177,0.438739,64149.0,64142.0,0.5152]
[1727226260471,0.3608,64149.0,64148.0,0.07794]
[1727226263481,0.077942,64147.0,64142.0,0.595347]
[1727226263676,0.3648,64149.0,64142.0,0.592347]
[1727226263677,0.077943,64146.0,64142.0,0.592347]
[1727226264084,0.3608,64143.0,64142.0,0.231547]
[1727226264287,0.3608,64143.0,64136.0,0.0771]
[1727226264288,0.077948,64142.0,64137.0,0.077954]
[1727226264778,0.077948,64142.0,64137.0,0.3111704]
[1727226264988,0.077948,64142.0,64138.0,0.077952]
[1727226265182,0.077948,64142.0,64137.0,0.2332164]
[1727226265378,0.077948,64142.0,64139.0,0.2332164]
[1727226265681,0.078948,64142.0,64137.0,0.24168667]
[1727226265979,0.07795,64141.0,64137.0,0.014]
[1727226266181,0.142,64142.0,64138.0,0.23368667]
[1727226266384,0.142,64142.0,64137.0,0.014]
[1727226266385,0.077953,64138.0,64137.0,0.014]
[1727226267088,0.077953,64138.0,64137.0,0.006]
[1727226267807,0.078953,64138.0,64137.0,0.014]
[1727226268302,0.077953,64138.0,64137.0,0.01]
[1727226268800,0.077953,64138.0,64137.0,0.004]
[1727226269004,0.077953,64138.0,64137.0,0.01]
[1727226269701,0.077953,64138.0,64137.0,0.008]
[1727226270399,0.077951,64139.0,64138.0,0.077952]
[1727226270699,0.077951,64139.0,64138.0,0.03895849]
[1727226270900,0.077951,64139.0,64137.0,0.008]
[1727226271895,0.077951,64139.0,64138.0,0.003]
[1727226272099,0.077951,64139.0,64138.0,0.006]
[1727226273101,0.077951,64139.0,64138.0,0.080953]
[1727226273292,0.077951,64139.0,64138.0,0.077953]
[1727226274000,0.077951,64139.0,64138.0,0.080953]
[1727226275004,0.077951,64139.0,64138.0,0.083953]
[1727226281612,0.438751,64139.0,64138.0,0.083953]
[1727226281805,0.3608,64139.0,64138.0,0.161906]
[1727226282313,0.3608,64139.0,64138.0,0.083953]
[1727226282813,0.40736899,64149.0,64148.0,0.07794]
[1727226282814,0.3608,64149.0,64148.0,0.07794]
[1727226283014,0.33302183,64160.0,64148.0,0.60768]
[1727226283236,0.3608,64151.0,64149.0,0.2356]
[1727226284011,0.3608,64151.0,64150.0,0.077938]
[1727226284713,0.3698,64151.0,64150.0,0.077938]
[1727226285214,0.3788,64151.0,64150.0,0.077938]
[1727226285801,0.3698,64151.0,64150.0,0.077938]
[1727226286014,0.3758,64151.0,64150.0,0.077938]
[1727226286213,0.3668,64151.0,64150.0,0.077938]
[1727226286413,0.3668,64151.0,64150.0,0.078938]
[1727226286414,0.3728,64151.0,64150.0,0.078938]
[1727226292418,0.012,64151.0,64150.0,0.078938]
[1727226303023,0.012,64151.0,64150.0,0.246876]
[1727226303219,0.37054701,64161.0,64150.0,0.246876]
[1727226303220,0.3644,64161.0,64150.0,1.39109537]
[1727226303428,0.3608,64161.0,64160.0,0.09]
[1727226304225,0.3608,64161.0,64160.0,0.167926]
[1727226304431,0.3668,64161.0,64160.0,0.167926]
[1727226304628,0.3728,64161.0,64160.0,0.167926]
[1727226305827,0.06217978,64168.0,64160.0,0.167926]
[1727226305828,0.04656899,64169.0,64160.0,1.757046]
[1727226306038,0.41096899,64174.0,64173.0,0.07791]
[1727226306219,0.3608,64179.0,64173.0,0.09]
[1727226306220,0.40738539,64179.0,64173.0,0.09]
[1727226306414,0.40738539,64179.0,64168.0,0.3608]
[1727226306415,0.40738539,64179.0,64172.0,0.14]
[1727226306618,0.3608,64179.0,64172.0,0.14]
[1727226307423,0.3608,64179.0,64178.0,0.077904]
[1727226307631,0.5008,64179.0,64173.0,0.23373257]
[1727226307929,0.5008,64179.0,64172.0,0.002]
[1727226307930,0.5118,64179.0,64172.0,0.002]
[1727226308223,0.5118,64179.0,64176.0,0.077906]
[1727226308931,0.5118,64179.0,64172.0,0.001]
[1727226309320,0.5008,64179.0,64173.0,0.23219388]
[1727226309624,0.5008,64179.0,64170.0,0.2322072]
[1727226309820,0.5008,64179.0,64173.0,0.07791]
[1727226312219,0.5008,64179.0,64174.0,0.077908]
[1727226312525,0.5018,64179.0,64174.0,0.077908]
[1727226313528,0.5008,64179.0,64174.0,0.077908]
[1727226314154,0.077905,64178.0,64168.0,0.36601302]
[1727226314323,0.077905,64178.0,64171.0,0.077911]
[1727226314522,0.077905,64178.0,64170.0,0.23293287]
[1727226314725,0.077905,64178.0,64172.0,0.23347257]
[1727226315036,0.077905,64178.0,64173.0,0.077909]
[1727226315430,0.55034539,64179.0,64169.0,0.1582]
[1727226315727,0.20217978,64174.0,64171.0,0.03894264]
[1727226315924,0.20217978,64174.0,64172.0,0.077911]
[1727226316229,0.06217978,64173.0,64172.0,0.077911]
[1727226317023,0.14457978,64173.0,64172.0,0.077911]
[1727226317531,0.14457978,64173.0,64163.0,0.0036]
[1727226317532,0.077911,64172.0,64169.0,0.077914]
[1727226317727,0.15571407,64172.0,64161.0,0.0808]
[1727226317926,0.04652388,64165.0,64164.0,0.23279135]
[1727226318122,0.04652388,64165.0,64163.0,0.23279135]
[1727226318317,0.04652388,64165.0,64161.0,0.0772]
[1727226318730,0.04652388,64165.0,64163.0,0.23259693]
[1727226319123,0.3608,64166.0,64163.0,0.23259693]
[1727226319319,0.18652979,64164.0,64151.0,0.3608]
[1727226319522,0.04652979,64160.0,64159.0,0.077927]
[1727226319734,0.06203184,64163.0,64161.0,0.077924]
[1727226320427,0.06203184,64163.0,64162.0,0.001]
[1727226320627,0.06204722,64163.0,64162.0,0.001]
[1727226321827,0.06504722,64163.0,64161.0,0.077924]
[1727226322234,0.06204722,64162.0,64161.0,0.077924]
[1727226323929,0.005,64163.0,64161.0,0.077924]
[1727226324737,0.005,64163.0,64162.0,0.077923]
[1727226324939,0.3608,64166.0,64164.0,0.077921]
[1727226325532,0.3608,64166.0,64165.0,0.21792]
[1727226326731,0.3648,64166.0,64165.0,0.21792]
[1727226328229,0.3608,64166.0,64165.0,0.21892]
[1727226328941,0.3608,64166.0,64165.0,0.21792]
[1727226329335,0.3608,64173.0,64165.0,0.45534437]
[1727226329541,0.3608,64173.0,64170.0,0.14]
[1727226329845,0.3608,64173.0,64172.0,0.077911]
[1727226330634,0.04660119,64176.0,64175.0,0.077908]
[1727226330936,0.3608,64182.0,64181.0,0.0779]
[1727226332033,0.3608,64182.0,64181.0,0.31084906]
[1727226332529,0.3718,64182.0,64181.0,0.31284906]
[1727226333441,0.3718,64182.0,64181.0,0.31805405]
[1727226335939,0.011,64182.0,64181.0,0.31805405]
[1727226338742,0.04660119,64192.0,64186.0,0.077894]
[1727226338942,0.04656293,64195.0,64191.0,0.14]
[1727226339130,0.3608,64197.0,64191.0,0.14]
[1727226339442,0.3608,64197.0,64196.0,0.14]
[1727226339637,0.3608,64197.0,64196.0,0.217882]
[1727226340734,0.3608,64205.0,64204.0,0.077872]
[1727226342137,0.3608,64205.0,64204.0,0.078872]
[1727226342547,0.3608,64205.0,64204.0,0.001]
[1727226343339,0.3608,64205.0,64204.0,0.002]
[1727226343538,0.3608,64205.0,64204.0,0.001]
[1727226343848,0.3608,64205.0,64204.0,0.002]
[1727226345447,0.07787,64206.0,64204.0,0.002]
[1727226345638,0.14516754,64207.0,64204.0,0.002]
[1727226345639,0.3608,64205.0,64204.0,0.002]
[1727226348339,0.3608,64205.0,64204.0,0.001]
[1727226348539,0.3618,64205.0,64204.0,0.002]
[1727226348947,0.439671,64205.0,64204.0,0.002]
[1727226352441,0.439671,64205.0,64204.0,0.079872]
[1727226353841,0.6379684,64205.0,64193.0,0.15530169]
[1727226354148,0.12384339,64203.0,64196.0,0.23397557]
[1727226354458,0.10840332,64199.0,64193.0,0.16048741]
[1727226354648,0.10532239,64198.0,64193.0,0.16048741]
[1727226354845,0.10532239,64197.0,64195.0,0.23419255]
[1727226355149,0.3608,64201.0,64193.0,0.16048741]
[1727226355150,0.10334687,64196.0,64193.0,0.16048741]
[1727226355346,0.10334687,64195.0,64194.0,0.077884]
[1727226355648,0.10840332,64199.0,64198.0,0.07788]
[1727226355841,0.13364711,64199.0,64198.0,0.07788]
[1727226356048,0.21178218,64199.0,64198.0,0.31123497]
[1727226356353,0.19412457,64199.0,64198.0,0.31123497]
[1727226356539,0.02524379,64199.0,64198.0,0.31123497]
[1727226356741,0.19412457,64199.0,64198.0,0.31123497]
[1727226356945,0.19412457,64199.0,64198.0,0.45123497]
[1727226357464,0.10337886,64199.0,64198.0,0.45123497]
[1727226357644,0.02524379,64199.0,64198.0,0.45123497]
[1727226357852,0.02524379,64199.0,64198.0,0.45223497]
[1727226358153,0.19712457,64199.0,64198.0,0.45323497]
[1727226358747,0.19725836,64199.0,64198.0,0.45323497]
[1727226359357,0.32143127,64199.0,64198.0,0.45323497]
[1727226360149,0.19725836,64199.0,64198.0,0.45323497]
[1727226360642,0.19725836,64199.0,64198.0,0.31323497]
[1727226360846,0.003,64199.0,64198.0,0.27428238]
[1727226362050,0.003,64199.0,64198.0,0.41428238]
[1727226363152,0.003,64199.0,64198.0,0.46063929]
[1727226364270,0.003,64199.0,64198.0,0.41428238]
[1727226366360,0.04958758,64199.0,64198.0,0.41428238]
[1727226367371,0.003,64199.0,64198.0,0.47636372]
[1727226368365,0.003,64199.0,64198.0,0.41428238]
[1727226368868,0.003,64199.0,64198.0,0.85296238]
[1727226369075,0.04969827,64199.0,64198.0,0.93056406]
[1727226369272,0.003,64199.0,64198.0,0.92113893]
[1727226370459,0.003,64199.0,64198.0,0.92106706]
[1727226372988,0.003,64199.0,64198.0,1.98838706]
[1727226373170,0.04669462,64204.0,64203.0,0.077874]
[1727226373374,0.04669462,64204.0,64203.0,0.295748]
[1727226373563,0.04669462,64204.0,64203.0,0.53073524]
[1727226373764,0.04669462,64204.0,64203.0,0.45286124]
[1727226374268,0.04669462,64206.0,64205.0,0.077871]
[1727226374468,0.0622595,64209.0,64206.0,0.07787]
[1727226374469,0.04669462,64207.0,64206.0,0.07787]
[1727226374668,0.0622595,64209.0,64208.0,0.077868]
[1727226374878,0.0622595,64209.0,64208.0,0.12442623]
[1727226375477,0.07782437,64213.0,64211.0,0.077863]
[1727226375872,0.42163958,64212.0,64206.0,0.001]
[1727226376183,0.42163958,64211.0,64210.0,0.077865]
[1727226376361,0.29882204,64211.0,64210.0,0.29573]
[1727226376970,0.29882204,64211.0,64210.0,1.59768596]
[1727226377470,0.4697703,64211.0,64210.0,1.59768596]
[1727226377673,0.29882204,64211.0,64210.0,1.59768596]
[1727226378064,0.29882204,64211.0,64210.0,1.59868596]
[1727226378265,0.46976673,64211.0,64210.0,0.53148596]
[1727226378467,0.46976673,64211.0,64210.0,0.45362096]
[1727226378666,0.46976673,64211.0,64210.0,0.45462096]
[1727226379193,0.46976673,64211.0,64210.0,0.31462096]
[1727226379480,0.29882204,64211.0,64210.0,0.31979789]
[1727226380468,0.46966553,64211.0,64210.0,0.31979789]
[1727226381481,0.46966553,64211.0,64210.0,0.45979789]
[1727226382482,0.29882204,64211.0,64210.0,0.45979789]
[1727226382977,0.29054971,64211.0,64210.0,0.45979789]
[1727226383976,0.3608,64216.0,64210.0,0.32741325]
[1727226384175,0.3608,64216.0,64211.0,0.04644111]
[1727226384683,0.3608,64216.0,64212.0,0.23497805]
[1727226384873,0.3608,64216.0,64215.0,0.077859]
[1727226385275,0.3608,64216.0,64215.0,0.31256771]
[1727226386373,0.3608,64216.0,64215.0,0.31356771]
[1727226387402,0.3608,64216.0,64215.0,0.31456771]
[1727226389369,0.3608,64216.0,64215.0,0.45456771]
[1727226389988,0.3608,64216.0,64215.0,0.23670871]
[1727226390181,0.799458,64216.0,64215.0,0.002]
[1727226390575,0.91954633,64216.0,64215.0,0.002]
[1727226391301,0.07786,64214.0,64202.0,0.00233616]
[1727226391476,0.28776378,64213.0,64210.0,0.077864]
[1727226391681,0.28776378,64212.0,64210.0,0.077864]
[1727226391979,0.28776378,64211.0,64210.0,0.077864]
[1727226392281,0.35896095,64211.0,64210.0,0.23300272]
[1727226392480,0.67647214,64211.0,64210.0,0.23300272]
[1727226392681,0.42776378,64211.0,64203.0,0.077874]
[1727226392883,0.3608,64204.0,64203.0,0.077874]
[1727226393081,0.72643578,64204.0,64203.0,0.23315329]
[1727226393283,0.077874,64203.0,64202.0,0.00333616]
[1727226393591,0.59353778,64203.0,64202.0,0.00433616]
[1727226394084,0.59353778,64203.0,64202.0,0.00333616]
[1727226394480,0.71139112,64203.0,64202.0,0.00333616]
[1727226394689,1.07419112,64203.0,64202.0,0.00433616]
[1727226394887,1.07419112,64203.0,64186.0,0.3608]
[1727226394888,2.06359712,64203.0,64193.0,0.077885]
[1727226395078,2.06359712,64203.0,64189.0,0.25229197]
[1727226395079,0.3608,64194.0,64189.0,0.18658197]
[1727226395391,0.28776378,64193.0,64190.0,0.31209586]
[1727226395576,0.28776378,64192.0,64190.0,0.077889]
[1727226395775,0.28776378,64191.0,64190.0,0.077889]
[1727226396092,0.45866274,64191.0,64183.0,0.14]
[1727226396290,0.15533164,64187.0,64186.0,0.077894]
[1727226396484,0.44304037,64187.0,64186.0,0.077894]
[1727226396680,0.36356378,64187.0,64186.0,0.077894]
[1727226397880,0.44345678,64187.0,64186.0,0.001]
[1727226398199,0.52315678,64187.0,64186.0,0.001]
[1727226398581,0.52315678,64187.0,64182.0,0.077898]
[1727226398582,0.52115678,64187.0,64182.0,0.077898]
[1727226398782,0.15515527,64184.0,64182.0,0.077898]
[1727226399088,0.15515527,64184.0,64178.0,0.14233673]
[1727226399089,0.15515527,64185.0,64178.0,0.18877784]
[1727226399383,0.15846,64187.0,64178.0,0.18877784]
[1727226399384,0.3608,64181.0,64180.0,0.077901]
[1727226399795,0.3608,64181.0,64180.0,0.31182572]
[1727226401691,0.3658,64181.0,64180.0,0.31182572]
[1727226402192,0.3628,64181.0,64180.0,0.31182572]
[1727226402383,0.3648,64181.0,64180.0,0.31182572]
[1727226402585,0.3628,64181.0,64180.0,0.31182572]
[1727226402786,0.3648,64181.0,64180.0,0.31182572]
[1727226404899,0.002,64181.0,64180.0,0.31182572]
[1727226405195,0.00497617,64196.0,64180.0,0.31182572]
[1727226405196,0.0748,64197.0,64180.0,0.28036583]
[1727226405385,0.0748,64197.0,64195.0,0.14]
[1727226405579,0.0748,64197.0,64191.0,0.3608]
[1727226405787,0.152681,64197.0,64191.0,0.3608]
[1727226405996,0.0748,64197.0,64191.0,0.3608]
[1727226406993,0.0748,64197.0,64191.0,0.438688]
[1727226407292,0.0748,64197.0,64195.0,0.001]
[1727226408081,0.0748,64197.0,64191.0,0.3608]
[1727226408287,0.0748,64197.0,64195.0,0.077883]
[1727226409795,0.0748,64197.0,64196.0,0.077882]
[1727226411189,0.0748,64197.0,64196.0,0.078882]
[1727226412095,0.0748,64197.0,64196.0,0.079882]
[1727226412792,0.152681,64197.0,64196.0,0.079882]
[1727226413503,0.152681,64197.0,64196.0,0.078882]
[1727226413992,0.152681,64197.0,64196.0,0.079882]
[1727226414389,0.152681,64197.0,64196.0,0.078882]
[1727226414598,0.152681,64197.0,64196.0,0.079882]
[1727226414999,0.152681,64197.0,64196.0,0.078882]
[1727226417100,0.152681,64197.0,64196.0,0.077882]
[1727226417323,0.152681,64197.0,64196.0,0.078882]
[1727226417486,0.152681,64197.0,64196.0,0.079882]
[1727226418196,0.152681,64197.0,64196.0,0.078882]
[1727226418395,0.152681,64197.0,64196.0,0.079882]
[1727226419493,0.0748,64197.0,64196.0,0.079882]
[1727226419896,0.152681,64197.0,64196.0,0.001]
[1727226420098,0.35474318,64197.0,64196.0,0.001]
[1727226420292,0.370562,64197.0,64196.0,0.001]
[1727226421503,0.077887,64192.0,64191.0,0.077888]
[1727226422595,0.42296467,64193.0,64192.0,0.077887]
[1727226423690,0.42296467,64193.0,64192.0,0.078887]
[1727226424499,0.42805966,64193.0,64192.0,0.078887]
[1727226425899,0.06725966,64193.0,64192.0,0.079887]
[1727226426702,0.06725966,64193.0,64192.0,0.078887]
[1727226426896,0.06725966,64193.0,64192.0,0.079887]
[1727226427102,0.00509499,64193.0,64192.0,0.079887]
[1727226427297,0.14004967,64194.0,64192.0,0.079887]
[1727226427509,0.14004967,64194.0,64192.0,0.12632811]
[1727226427901,0.14004967,64194.0,64192.0,0.002]
[1727226428099,0.08293521,64194.0,64193.0,0.077886]
[1727226428506,0.14509988,64194.0,64193.0,0.077886]
[1727226428741,0.08293521,64194.0,64193.0,0.077886]
[1727226429105,0.14514478,64194.0,64193.0,0.077886]
[1727226429600,0.08293521,64194.0,64193.0,0.12432711]
[1727226429806,0.14514909,64194.0,64193.0,0.077886]
[1727226430001,0.08293521,64194.0,64193.0,0.077886]
[1727226430197,0.14515069,64194.0,64193.0,0.078886]
[1727226430399,0.14515718,64194.0,64193.0,0.078886]
[1727226430598,0.08293521,64194.0,64193.0,0.078886]
[1727226430805,0.08293521,64194.0,64193.0,0.079886]
[1727226433111,0.08293521,64194.0,64193.0,0.078886]
[1727226433306,0.08293521,64194.0,64193.0,0.079886]
[1727226433508,0.08293521,64194.0,64193.0,0.12632711]
[1727226434803,0.08293521,64194.0,64193.0,0.12532711]
[1727226435006,0.08293521,64194.0,64193.0,0.12632711]
[1727226436509,0.36176,64197.0,64196.0,0.077882]
[1727226436713,0.3608,64197.0,64196.0,0.077882]
[1727226436910,0.3608,64197.0,64196.0,0.12448176]
[1727226436911,0.4230535,64197.0,64196.0,0.12448176]
[1727226437411,0.3608,64197.0,64196.0,0.12448176]
[1727226437713,0.3608,64197.0,64196.0,0.077882]
[1727226438210,0.3608,64197.0,64196.0,0.078882]
[1727226438621,0.3608,64197.0,64196.0,0.12548176]
[1727226438816,0.00518247,64199.0,64198.0,0.07788]
[1727226439017,0.15545473,64200.0,64198.0,0.07788]
[1727226439213,0.07757773,64200.0,64199.0,0.077878]
[1727226440918,0.07757773,64200.0,64199.0,0.078878]
[1727226442033,0.07757773,64200.0,64199.0,0.079878]
[1727226443113,0.00515248,64200.0,64199.0,0.079878]
[1727226443422,0.06224493,64200.0,64199.0,0.12647776]
[1727226444313,0.06224493,64201.0,64200.0,0.077877]
[1727226444707,0.07757773,64204.0,64203.0,0.077874]
[1727226444913,0.07757773,64205.0,64204.0,0.077872]
[1727226445132,0.07779729,64205.0,64204.0,0.077872]
[1727226445422,0.46724,64205.0,64204.0,0.077872]
[1727226445921,0.14497248,64206.0,64204.0,0.077872]
[1727226446421,0.07778484,64205.0,64204.0,0.079872]
[1727226446923,0.07778267,64207.0,64206.0,0.07787]
[1727226447119,0.07778267,64208.0,64207.0,0.077869]
[1727226448218,0.02524334,64209.0,64207.0,0.077869]
[1727226448219,0.07778267,64209.0,64207.0,0.077869]
[1727226448419,0.15565067,64208.0,64204.0,0.001]
[1727226448624,0.14,64205.0,64204.0,0.002]
[1727226448818,0.217871,64205.0,64204.0,0.002]
[1727226449121,0.217871,64205.0,64204.0,0.001]
[1727226449321,0.077872,64204.0,64203.0,0.077873]
[1727226449616,0.51645467,64204.0,64203.0,0.077873]
[1727226449817,0.438672,64204.0,64203.0,0.077873]
[1727226450218,0.51645467,64204.0,64203.0,0.077873]
[1727226450422,0.51645467,64204.0,64203.0,0.078873]
[1727226451125,0.438672,64204.0,64203.0,0.078873]
[1727226452428,0.438672,64204.0,64203.0,0.079873]
[1727226455128,0.51645467,64204.0,64203.0,0.079873]
[1727226456715,0.438672,64204.0,64203.0,0.079873]
[1727226457120,0.51645467,64204.0,64203.0,0.079873]
[1727226457526,0.46391767,64204.0,64203.0,0.079873]
[1727226457726,0.438672,64204.0,64203.0,0.079873]
[1727226457923,0.5164463,64204.0,64203.0,0.079873]
[1727226458630,0.5164463,64204.0,64203.0,0.002]
[1727226459327,0.438672,64204.0,64203.0,0.002]
[1727226460320,0.528672,64204.0,64203.0,0.002]
[1727226461316,0.5539174,64204.0,64203.0,0.002]
[1727226465424,0.1931174,64204.0,64203.0,0.002]
[1727226465620,0.5539174,64204.0,64203.0,0.002]
[1727226469738,0.6317894,64204.0,64203.0,0.002]
[1727226471029,0.077886,64193.0,64192.0,0.0036]
[1727226471339,0.45424405,64193.0,64180.0,0.06567628]
[1727226471637,0.45424405,64193.0,64177.0,0.4403]
[1727226471638,0.07782101,64190.0,64186.0,0.09]
[1727226471841,0.43862101,64193.0,64192.0,0.077887]
[1727226472138,0.3608,64193.0,64192.0,0.077887]
[1727226472332,0.3608,64193.0,64192.0,0.078887]
[1727226473930,0.36599061,64193.0,64192.0,0.078887]
[1727226474343,0.36699061,64193.0,64192.0,0.078887]
[1727226474933,0.36799061,64193.0,64192.0,0.079887]
[1727226475329,0.43020514,64193.0,64192.0,0.079887]
[1727226476131,0.06421453,64193.0,64192.0,0.079887]
[1727226476333,0.0486567,64193.0,64192.0,0.079887]
[1727226476527,0.002,64193.0,64192.0,0.079887]
[1727226477138,0.0466567,64196.0,64195.0,0.077883]
[1727226477334,0.0466567,64197.0,64196.0,0.077882]
[1727226477731,0.06221453,64201.0,64196.0,0.46732]
[1727226477937,0.04665552,64198.0,64195.0,0.09]
[1727226478240,0.06221453,64200.0,64199.0,0.077878]
[1727226478763,0.06221453,64201.0,64199.0,0.077878]
[1727226478938,0.06321453,64201.0,64199.0,0.077878]
[1727226479840,0.06321453,64201.0,64196.0,0.001]
[1727226479841,0.06321453,64201.0,64200.0,0.077877]
[1727226480047,0.001,64201.0,64200.0,0.077877]
[1727226481233,0.001,64201.0,64200.0,0.222377]
[1727226481643,0.06221453,64202.0,64201.0,0.077876]
[1727226484239,0.001,64202.0,64201.0,0.078876]
[1727226484439,0.001,64202.0,64201.0,0.079876]
[1727226484650,0.04765144,64202.0,64201.0,0.079876]
[1727226484950,0.001,64202.0,64201.0,0.079876]
[1727226485843,0.078875,64202.0,64201.0,0.002]
[1727226487159,0.439675,64202.0,64201.0,0.002]
[1727226487550,0.5174341,64202.0,64201.0,0.002]
[1727226487757,0.439675,64202.0,64201.0,0.002]
[1727226488045,0.5174345,64202.0,64201.0,0.002]
[1727226488552,0.5953095,64202.0,64201.0,0.002]
[1727226488849,0.98483,64202.0,64201.0,0.002]
[1727226489038,1.10352111,64202.0,64201.0,0.002]
[1727226489439,1.10338884,64202.0,64201.0,0.002]
[1727226489648,1.10338884,64202.0,64187.0,0.06207628]
[1727226489649,0.077889,64190.0,64187.0,0.06207628]